bitfinex/quotes_BTCUSD_20241014
["timestamp","ask_amount","ask_price","bid_price","bid_amount"]
[1728879765672,0.157245,64414.0,64413.0,0.001]
[1728879765893,0.155265,64406.0,64405.0,0.23288852]
[1728879766556,0.155274,64403.0,64393.0,0.31059]
[1728879766780,0.02432838,64406.0,64396.0,0.155289]
[1728879766990,0.15528,64400.0,64395.0,0.15529]
[1728879767207,0.15528,64400.0,64393.0,0.31059]
[1728879767430,0.15509241,64400.0,64395.0,0.1]
[1728879767641,0.155285,64398.0,64392.0,0.155297]
[1728879767857,0.310557,64401.0,64387.0,0.310617]
[1728879768075,0.155293,64395.0,64391.0,0.23288852]
[1728879768737,0.27138307,64397.0,64387.0,0.310617]
[1728879768738,0.42667007,64397.0,64392.0,0.23288852]
[1728879768952,0.02433084,64398.0,64393.0,0.310592]
[1728879769161,0.02433084,64398.0,64395.0,0.155289]
[1728879769390,0.02433084,64398.0,64396.0,0.155288]
[1728879769608,0.02433084,64398.0,64393.0,0.310592]
[1728879769847,0.02433084,64398.0,64384.0,0.11184987]
[1728879769848,0.004,64395.0,64385.0,0.00965175]
[1728879770105,0.155296,64393.0,64388.0,0.255307]
[1728879770360,0.15529,64396.0,64391.0,0.1553]
[1728879770578,0.02433084,64398.0,64391.0,0.1553]
[1728879770579,0.02433084,64398.0,64391.0,0.005]
[1728879771036,0.02433084,64398.0,64388.0,0.10965175]
[1728879771257,0.02433084,64398.0,64394.0,0.155293]
[1728879771473,0.03133084,64398.0,64391.0,0.3106]
[1728879771684,0.03133084,64398.0,64389.0,0.32026275]
[1728879771685,0.02433084,64398.0,64392.0,0.310595]
[1728879771911,0.02433084,64398.0,64394.0,0.155293]
[1728879772133,0.02433084,64398.0,64392.0,0.155297]
[1728879772134,0.18661584,64398.0,64392.0,0.155297]
[1728879772350,0.18661584,64398.0,64393.0,0.155296]
[1728879772564,0.155287,64397.0,64391.0,0.157301]
[1728879772779,0.155287,64397.0,64391.0,0.002]
[1728879772993,0.15529,64396.0,64391.0,0.002]
[1728879773263,0.155298,64392.0,64391.0,0.002]
[1728879773710,0.155307,64389.0,64385.0,0.01453324]
[1728879773929,0.155307,64389.0,64386.0,0.00966893]
[1728879774157,0.007,64398.0,64387.0,0.00966811]
[1728879774368,0.397546,64403.0,64382.0,0.1]
[1728879774369,0.310584,64395.0,64382.0,0.1]
[1728879774592,0.310584,64395.0,64379.0,0.01921292]
[1728879774593,0.310606,64391.0,64385.0,0.1]
[1728879774803,0.155309,64388.0,64386.0,0.01454147]
[1728879775044,0.0009865,64398.0,64385.0,0.1]
[1728879775299,0.23288852,64396.0,64386.0,0.01454227]
[1728879775523,0.0009865,64398.0,64387.0,0.01454224]
[1728879775524,0.155299,64392.0,64387.0,0.01454224]
[1728879775796,0.155299,64392.0,64388.0,0.00967782]
[1728879776040,0.155299,64392.0,64386.0,0.00486442]
[1728879776041,0.310591,64394.0,64389.0,0.00968118]
[1728879776265,0.155297,64393.0,64387.0,0.00486442]
[1728879776482,0.155299,64392.0,64388.0,0.00968296]
[1728879776702,0.155299,64392.0,64386.0,0.155312]
[1728879776929,0.155302,64391.0,64387.0,0.01454836]
[1728879777177,0.001,64395.0,64390.0,0.23288852]
[1728879777392,0.155291,64395.0,64386.0,0.310623]
[1728879777613,0.155291,64395.0,64389.0,0.155305]
[1728879777818,0.155291,64395.0,64390.0,0.0096842]
[1728879778032,0.155291,64395.0,64389.0,0.155305]
[1728879778245,0.155291,64395.0,64391.0,0.00986723]
[1728879778456,0.155291,64395.0,64392.0,0.0096834]
[1728879778679,0.001,64395.0,64392.0,0.00986035]
[1728879779144,0.155288,64397.0,64391.0,0.000823]
[1728879779358,0.014,64395.0,64392.0,0.00968734]
[1728879779570,0.014,64395.0,64392.0,0.00986035]
[1728879779788,0.156292,64395.0,64393.0,0.00968718]
[1728879780006,0.012,64395.0,64392.0,0.00986035]
[1728879780242,0.167291,64395.0,64394.0,0.23288852]
[1728879780458,0.167291,64395.0,64394.0,0.00968727]
[1728879781388,0.166291,64395.0,64394.0,0.00968727]
[1728879781607,0.156291,64395.0,64394.0,0.00968727]
[1728879781830,0.167291,64395.0,64394.0,0.00968727]
[1728879782068,0.155291,64395.0,64394.0,0.00968727]
[1728879782286,0.02433163,64398.0,64391.0,0.000823]
[1728879782287,0.155298,64392.0,64391.0,0.000823]
[1728879782501,0.155298,64392.0,64391.0,0.03091965]
[1728879782776,0.155298,64392.0,64391.0,0.0153918]
[1728879782974,0.465883,64394.0,64391.0,0.0153918]
[1728879783193,0.155291,64396.0,64392.0,0.0145688]
[1728879783453,0.17961563,64398.0,64393.0,0.0145688]
[1728879783667,0.17961563,64398.0,64394.0,0.0145688]
[1728879783668,0.310569,64398.0,64394.0,0.0145688]
[1728879783876,0.310569,64398.0,64395.0,0.00970456]
[1728879783877,0.155288,64397.0,64395.0,0.00970456]
[1728879784103,0.155288,64397.0,64391.0,0.156123]
[1728879784104,0.155288,64397.0,64396.0,0.00970456]
[1728879784327,0.155288,64397.0,64396.0,0.01456887]
[1728879785451,0.169288,64397.0,64396.0,0.01456887]
[1728879785912,0.479863,64397.0,64396.0,0.01459251]
[1728879786167,0.169286,64397.0,64396.0,0.01459251]
[1728879786379,0.014,64397.0,64396.0,0.01459251]
[1728879787241,0.34566655,64397.0,64396.0,0.01459251]
[1728879788081,0.42596655,64397.0,64396.0,0.00972821]
[1728879788297,0.42796655,64397.0,64396.0,0.00972821]
[1728879788510,0.42796655,64397.0,64391.0,0.000823]
[1728879788511,0.155298,64392.0,64391.0,0.000823]
[1728879788733,0.33167855,64392.0,64391.0,0.000823]
[1728879788947,0.5080591,64392.0,64391.0,0.000823]
[1728879789160,0.75588311,64392.0,64391.0,0.000823]
[1728879789379,0.95488311,64392.0,64391.0,0.000823]
[1728879789590,0.95688311,64392.0,64391.0,0.000823]
[1728879790080,0.97088311,64392.0,64391.0,0.000823]
[1728879790296,0.96888311,64392.0,64391.0,0.000823]
[1728879791189,0.95488311,64392.0,64391.0,0.000823]
[1728879791405,0.96888311,64392.0,64391.0,0.000823]
[1728879791625,0.97288311,64392.0,64391.0,0.001823]
[1728879792050,0.97288311,64392.0,64391.0,0.000823]
[1728879792051,0.96888311,64392.0,64391.0,0.000823]
[1728879792273,0.96188311,64392.0,64391.0,0.001823]
[1728879792731,0.97588311,64392.0,64391.0,0.001823]
[1728879792949,0.79250256,64392.0,64391.0,0.000823]
[1728879793182,0.79950256,64392.0,64391.0,0.001823]
[1728879793395,0.97588311,64392.0,64391.0,0.001823]
[1728879794049,0.79950256,64392.0,64391.0,0.001823]
[1728879794278,0.442898,64392.0,64391.0,0.001823]
[1728879794531,0.007,64392.0,64391.0,0.001823]
[1728879794756,0.176298,64392.0,64391.0,0.01642305]
[1728879794972,0.162298,64392.0,64391.0,0.01642305]
[1728879795189,0.162298,64392.0,64391.0,0.02486298]
[1728879795408,0.169298,64392.0,64391.0,0.02386298]
[1728879795613,0.159298,64392.0,64391.0,0.02486298]
[1728879796041,0.004,64392.0,64391.0,0.03201171]
[1728879796352,0.004,64392.0,64391.0,0.04822412]
[1728879796572,0.518,64392.0,64391.0,0.23273806]
[1728879796817,0.518,64392.0,64391.0,0.23273931]
[1728879797068,0.518,64392.0,64391.0,0.22301103]
[1728879797316,0.018,64392.0,64391.0,0.22301103]
[1728879797812,0.004,64392.0,64391.0,0.22301103]
[1728879798039,0.018,64392.0,64391.0,0.22301103]
[1728879798486,0.004,64392.0,64391.0,0.20352736]
[1728879798709,0.012,64392.0,64391.0,0.20352736]
[1728879798921,0.008,64392.0,64391.0,0.20252736]
[1728879799130,0.012,64392.0,64391.0,0.20252736]
[1728879799603,0.008,64392.0,64391.0,0.20252736]
[1728879800028,0.008,64392.0,64391.0,0.20452736]
[1728879800492,0.008,64392.0,64391.0,0.20452529]
[1728879803598,0.008,64392.0,64391.0,0.19674267]
[1728879806899,0.008,64392.0,64391.0,0.20452529]
[1728879807328,0.008,64392.0,64391.0,0.19674267]
[1728879807548,0.008,64392.0,64391.0,0.20452529]
[1728879807776,0.008,64392.0,64391.0,0.19187853]
[1728879807994,0.008,64392.0,64391.0,0.20452439]
[1728879808207,0.008,64392.0,64391.0,0.19574232]
[1728879808418,0.008,64392.0,64391.0,0.20352439]
[1728879808647,0.008,64392.0,64391.0,0.4647484]
[1728879808894,0.008,64392.0,64391.0,0.47622281]
[1728879809346,0.008,64392.0,64391.0,0.45089736]
[1728879809562,0.001646,64400.0,64399.0,0.155281]
[1728879809775,0.001646,64400.0,64399.0,0.16988821]
[1728879810024,0.001646,64400.0,64399.0,0.17818051]
[1728879810250,0.001646,64400.0,64399.0,0.02289951]
[1728879811762,0.001646,64400.0,64399.0,0.01315609]
[1728879811974,0.007646,64400.0,64399.0,0.02288875]
[1728879812188,0.001646,64400.0,64399.0,0.02288875]
[1728879812403,0.001646,64400.0,64399.0,0.02588875]
[1728879812631,0.007646,64400.0,64399.0,0.02588875]
[1728879812838,0.007646,64400.0,64399.0,0.02288875]
[1728879813261,0.007646,64400.0,64399.0,0.02588875]
[1728879814156,0.162925,64400.0,64399.0,0.02588875]
[1728879814387,0.244425,64400.0,64399.0,0.0112923]
[1728879814615,0.238425,64400.0,64399.0,0.003]
[1728879814851,0.40564901,64400.0,64399.0,0.003]
[1728879815078,0.77012956,64400.0,64399.0,0.003]
[1728879815348,0.155298,64392.0,64391.0,0.000823]
[1728879815575,0.75830256,64392.0,64391.0,0.000823]
[1728879816740,0.7826389,64392.0,64391.0,0.000823]
[1728879816968,0.62141489,64392.0,64391.0,0.000823]
[1728879818120,0.62341489,64392.0,64391.0,0.001823]
[1728879818343,0.63741489,64392.0,64391.0,0.001823]
[1728879818559,0.62141489,64392.0,64391.0,0.000823]
[1728879819055,0.63741489,64392.0,64391.0,0.001823]
[1728879819743,0.62141489,64392.0,64391.0,0.000823]
[1728879820229,0.63541489,64392.0,64391.0,0.000823]
[1728879820468,0.7966389,64392.0,64391.0,0.000823]
[1728879820695,1.13938916,64392.0,64391.0,0.000823]
[1728879820911,0.97801945,64392.0,64391.0,0.000823]
[1728879821140,0.98001945,64392.0,64391.0,0.001823]
[1728879821369,0.96601945,64392.0,64391.0,0.001823]
[1728879821624,0.96601945,64392.0,64391.0,0.000823]
[1728879821625,0.96401945,64392.0,64391.0,0.000823]
[1728879821834,0.98001945,64392.0,64391.0,0.001823]
[1728879822066,0.96601945,64392.0,64391.0,0.001823]
[1728879822281,0.98201945,64392.0,64391.0,0.001823]
[1728879822488,0.98001945,64392.0,64391.0,0.000823]
[1728879822701,0.98201945,64392.0,64391.0,0.001823]
[1728879823365,0.98001945,64392.0,64391.0,0.001823]
[1728879823811,0.237247,64372.0,64371.0,0.02336847]
[1728879824044,0.237247,64372.0,64368.0,0.23288852]
[1728879824045,0.155354,64369.0,64368.0,0.23288852]
[1728879824536,0.310703,64370.0,64361.0,0.23288852]
[1728879824537,0.155371,64362.0,64361.0,0.23288852]
[1728879824770,0.33175155,64362.0,64361.0,0.23288852]
[1728879825297,0.48712455,64362.0,64355.0,0.10778623]
[1728879825608,0.17638055,64358.0,64356.0,0.01459923]
[1728879825828,0.33175155,64362.0,64357.0,0.155382]
[1728879826079,0.33175155,64362.0,64354.0,0.000823]
[1728879826080,0.15538,64359.0,64354.0,0.000823]
[1728879826337,0.17638055,64358.0,64354.0,0.000823]
[1728879826598,0.17638055,64358.0,64355.0,0.0145972]
[1728879826893,0.17638055,64358.0,64354.0,0.000823]
[1728879826894,0.155383,64357.0,64354.0,0.000823]
[1728879827561,0.17638055,64358.0,64355.0,0.004]
[1728879827790,0.33176155,64358.0,64355.0,0.004]
[1728879828031,0.33476155,64358.0,64354.0,0.000823]
[1728879828287,0.155388,64355.0,64354.0,0.009823]
[1728879829453,0.155388,64355.0,64354.0,0.000823]
[1728879829681,0.155388,64355.0,64354.0,0.00964446]
[1728879829901,0.48714255,64358.0,64354.0,0.000823]
[1728879830117,0.155383,64357.0,64354.0,0.00964446]
[1728879830341,0.155387,64356.0,64354.0,0.000823]
[1728879830558,0.48714255,64358.0,64355.0,0.00881457]
[1728879830559,0.33176155,64358.0,64355.0,0.00881457]
[1728879830824,0.33176255,64358.0,64355.0,0.00881457]
[1728879831047,0.155383,64357.0,64355.0,0.00881457]
[1728879831490,0.157383,64357.0,64355.0,0.00881457]
[1728879831732,0.155383,64357.0,64355.0,0.00881457]
[1728879831945,0.33176055,64358.0,64355.0,0.00881457]
[1728879832204,0.001,64357.0,64355.0,0.00881457]
[1728879832633,0.003,64357.0,64355.0,0.16420257]
[1728879832849,0.002,64357.0,64355.0,0.00881457]
[1728879833515,0.17638055,64358.0,64355.0,0.00881457]
[1728879833737,0.17638055,64358.0,64355.0,0.16420157]
[1728879834190,0.17638055,64358.0,64355.0,0.00881457]
[1728879834433,0.17738055,64358.0,64355.0,0.17220157]
[1728879834962,0.18038055,64358.0,64355.0,0.01681457]
[1728879835944,0.155385,64356.0,64355.0,0.01681457]
[1728879837115,0.02434449,64357.0,64355.0,0.01681457]
[1728879837583,0.02434449,64357.0,64355.0,0.17220157]
[1728879838020,0.02434449,64357.0,64355.0,0.00881457]
[1728879838477,0.02434449,64357.0,64355.0,0.16420157]
[1728879838688,0.03534449,64357.0,64355.0,0.16420157]
[1728879839568,0.03534449,64357.0,64355.0,0.00881457]
[1728879839816,0.03534449,64357.0,64355.0,0.16420057]
[1728879840499,0.03534449,64357.0,64355.0,0.16420157]
[1728879840969,0.03534449,64357.0,64356.0,0.38827352]
[1728879841213,0.03534449,64357.0,64356.0,0.155385]
[1728879841431,0.03534449,64357.0,64356.0,0.17879449]
[1728879841881,0.03534449,64357.0,64356.0,0.17879839]
[1728879842094,0.02434449,64357.0,64356.0,0.19458633]
[1728879842580,0.03534449,64357.0,64356.0,0.19458633]
[1728879842800,0.011,64357.0,64356.0,0.29458633]
[1728879843023,0.011,64357.0,64356.0,0.56101825]
[1728879843465,0.17638055,64376.0,64364.0,0.1]
[1728879843693,0.17638055,64376.0,64365.0,0.32627597]
[1728879843694,0.23288852,64369.0,64365.0,0.32627597]
[1728879843910,0.17736145,64376.0,64371.0,0.155348]
[1728879844131,0.33269945,64376.0,64371.0,0.155348]
[1728879844366,0.33171855,64376.0,64372.0,0.02380438]
[1728879844614,0.17638055,64376.0,64373.0,0.0145805]
[1728879844838,0.17638055,64376.0,64374.0,0.1699215]
[1728879845066,0.17638055,64376.0,64375.0,0.0145805]
[1728879845558,0.18238055,64376.0,64375.0,0.02613658]
[1728879846066,0.34571755,64376.0,64375.0,0.02613658]
[1728879846335,0.35171755,64376.0,64375.0,0.02713658]
[1728879846574,0.18238055,64376.0,64375.0,0.02713658]
[1728879846799,0.19638055,64376.0,64375.0,0.02713658]
[1728879847043,0.02,64376.0,64375.0,0.4153641]
[1728879847317,0.02,64376.0,64375.0,0.20581162]
[1728879847832,0.014,64376.0,64375.0,0.20481162]
[1728879848077,0.17638055,64380.0,64376.0,0.155335]
[1728879848318,0.17638055,64380.0,64377.0,0.03791654]
[1728879848574,0.17638055,64380.0,64378.0,0.0145805]
[1728879848575,0.33170855,64380.0,64378.0,0.0145805]
[1728879848829,0.33170855,64380.0,64379.0,0.0145805]
[1728879849089,0.17638055,64380.0,64379.0,0.02606568]
[1728879850340,0.33170755,64380.0,64379.0,0.02606568]
[1728879851032,0.33170755,64380.0,64379.0,0.02608919]
[1728879851543,0.34170755,64380.0,64379.0,0.02608919]
[1728879851790,0.33170755,64380.0,64379.0,0.02608919]
[1728879852284,0.34170755,64380.0,64379.0,0.02708919]
[1728879852792,0.18638055,64380.0,64379.0,0.02708919]
[1728879853049,0.17638055,64380.0,64379.0,0.02608919]
[1728879853292,0.18638055,64380.0,64379.0,0.02708919]
[1728879854239,0.165327,64380.0,64379.0,0.02708919]
[1728879854496,0.34170755,64380.0,64379.0,0.02708919]
[1728879854741,0.34170755,64380.0,64379.0,0.02708918]
[1728879855015,0.18638055,64380.0,64379.0,0.02708918]
[1728879855249,0.18638055,64380.0,64379.0,0.02708321]
[1728879858651,0.01,64380.0,64379.0,0.18240933]
[1728879858910,0.01,64380.0,64379.0,0.0368082]
[1728879859143,0.01,64380.0,64379.0,0.1921382]
[1728879860064,0.01,64380.0,64379.0,0.18240933]
[1728879860318,0.011646,64380.0,64379.0,0.18240933]
[1728879863927,0.011646,64380.0,64379.0,0.19799843]
[1728879864172,0.011646,64380.0,64379.0,0.18241793]
[1728879864402,0.011646,64380.0,64379.0,0.19800109]
[1728879865732,0.011646,64380.0,64379.0,0.2057853]
[1728879866274,0.011646,64380.0,64379.0,0.23499218]
[1728879866524,0.011646,64380.0,64379.0,0.16781518]
[1728879866768,0.011646,64380.0,64379.0,0.205804]
[1728879867015,0.001646,64380.0,64379.0,0.204804]
[1728879867245,0.002646,64380.0,64379.0,0.23429806]
[1728879867484,0.002646,64380.0,64379.0,0.216804]
[1728879867708,0.002646,64380.0,64379.0,0.23602713]
[1728879867709,0.001646,64380.0,64379.0,0.23602713]
[1728879867946,0.001646,64380.0,64379.0,0.22629806]
[1728879868186,0.002646,64380.0,64379.0,0.23829806]
[1728879868434,0.002646,64380.0,64379.0,0.24802713]
[1728879868688,0.002646,64380.0,64379.0,0.23629806]
[1728879868922,0.001646,64380.0,64379.0,0.22629806]
[1728879869210,0.001646,64380.0,64379.0,0.23602713]
[1728879869648,0.001646,64380.0,64379.0,0.22629806]
[1728879869898,0.001646,64380.0,64379.0,0.22635046]
[1728879870119,0.001646,64380.0,64379.0,0.23607987]
[1728879870352,0.002646,64380.0,64379.0,0.24607987]
[1728879870569,0.002646,64380.0,64379.0,0.23635046]
[1728879870790,0.001646,64380.0,64379.0,0.22635046]
[1728879871006,0.002646,64380.0,64379.0,0.24807987]
[1728879871236,0.002646,64380.0,64379.0,0.23835046]
[1728879871462,0.002646,64380.0,64379.0,0.23607987]
[1728879871463,0.001646,64380.0,64379.0,0.23607987]
[1728879871911,0.002646,64380.0,64379.0,0.25772495]
[1728879872131,0.002646,64380.0,64379.0,0.25572495]
[1728879873425,0.001646,64380.0,64379.0,0.24572495]
[1728879873671,0.002646,64380.0,64379.0,0.25872495]
[1728879874154,0.002646,64380.0,64379.0,0.24672495]
[1728879874400,0.001646,64380.0,64379.0,0.24672495]
[1728879874627,0.002646,64380.0,64379.0,0.25772495]
[1728879875084,0.001646,64380.0,64379.0,0.24672495]
[1728879875312,0.001646,64380.0,64379.0,0.24572495]
[1728879875759,0.001646,64380.0,64379.0,0.25722751]
[1728879875995,0.002646,64380.0,64379.0,0.26922751]
[1728879876235,0.002646,64380.0,64379.0,0.27122751]
[1728879878433,0.002646,64380.0,64379.0,0.25958243]
[1728879879162,0.002646,64380.0,64379.0,0.35958243]
[1728879879455,0.0026379,64391.0,64390.0,0.155303]
[1728879879684,0.0026379,64391.0,64390.0,0.16795123]
[1728879879921,0.001646,64391.0,64390.0,0.2355936]
[1728879880152,0.001646,64391.0,64390.0,0.24532301]
[1728879881105,0.001646,64391.0,64390.0,0.23481607]
[1728879881337,0.001646,64391.0,64390.0,0.24631172]
[1728879881553,0.001646,64391.0,64390.0,0.24531172]
[1728879882017,0.002646,64391.0,64390.0,0.25331172]
[1728879882491,0.002646,64391.0,64390.0,0.25431172]
[1728879882492,0.012646,64391.0,64390.0,0.25431172]
[1728879882737,0.002646,64391.0,64390.0,0.41764145]
[1728879882953,0.002646,64391.0,64390.0,0.41453573]
[1728879882954,0.004646,64391.0,64390.0,0.41453573]
[1728879883406,0.004646,64391.0,64390.0,0.49063573]
[1728879884313,0.004646,64391.0,64390.0,0.48090822]
[1728879884596,0.004646,64391.0,64390.0,0.49063573]
[1728879884822,0.004646,64391.0,64390.0,0.76701628]
[1728879885047,0.004646,64391.0,64390.0,0.95231628]
[1728879885501,0.004646,64391.0,64390.0,0.95450911]
[1728879885721,0.004646,64391.0,64390.0,0.96401814]
[1728879886197,0.002646,64391.0,64390.0,0.91951814]
[1728879886450,0.002646,64391.0,64390.0,0.82494492]
[1728879886678,0.003646,64391.0,64390.0,0.85794492]
[1728879886904,0.003646,64391.0,64390.0,0.99701814]
[1728879887128,0.002646,64391.0,64390.0,0.98890299]
[1728879887368,0.002646,64391.0,64390.0,1.00290299]
[1728879887814,0.002646,64391.0,64390.0,0.98890299]
[1728879888033,0.002646,64391.0,64390.0,0.97917703]
[1728879888264,0.002646,64391.0,64390.0,0.99317703]
[1728879889443,0.002646,64391.0,64390.0,0.34000248]
[1728879890349,0.001646,64391.0,64390.0,0.31600248]
[1728879890788,0.001646,64391.0,64390.0,0.30750683]
[1728879891240,0.001646,64391.0,64390.0,0.33000248]
[1728879891455,0.001646,64391.0,64390.0,0.31850683]
[1728879891675,0.001646,64391.0,64390.0,0.30750683]
[1728879892132,0.001646,64391.0,64390.0,0.31850683]
[1728879892433,0.001646,64391.0,64390.0,0.30293236]
[1728879892662,0.001646,64391.0,64390.0,0.31850168]
[1728879895287,0.001646,64391.0,64390.0,0.32996553]
[1728879895512,0.001646,64391.0,64390.0,0.32014568]
[1728879896910,0.001646,64391.0,64390.0,0.22014568]
[1728879897901,0.001646,64391.0,64390.0,0.05384268]
[1728879898138,0.001646,64391.0,64390.0,0.20914568]
[1728879898364,0.001646,64391.0,64390.0,0.21214568]
[1728879898585,0.003646,64391.0,64390.0,0.21214568]
[1728879899784,0.003646,64391.0,64390.0,0.03822331]
[1728879900067,0.003646,64391.0,64390.0,0.05687011]
[1728879900307,0.003646,64391.0,64390.0,0.05686849]
[1728879900547,0.342347,64391.0,64390.0,0.03350106]
[1728879901000,0.342347,64391.0,64390.0,0.0222483]
[1728879901473,0.423547,64391.0,64390.0,0.0222483]
[1728879901963,0.423547,64391.0,64390.0,0.01738412]
[1728879902186,0.59992755,64391.0,64390.0,0.01738412]
[1728879902434,0.59792755,64391.0,64390.0,0.007644]
[1728879902684,0.421547,64391.0,64390.0,0.007644]
[1728879902917,0.60392755,64391.0,64390.0,0.002644]
[1728879903139,0.59792755,64391.0,64390.0,0.001644]
[1728879903373,0.77815156,64391.0,64390.0,0.002644]
[1728879903607,0.76415156,64391.0,64390.0,0.001644]
[1728879903895,0.76415156,64391.0,64390.0,0.003644]
[1728879904380,0.76415156,64391.0,64390.0,0.001644]
[1728879904611,0.76415156,64391.0,64390.0,0.002644]
[1728879905093,0.77815156,64391.0,64390.0,0.003644]
[1728879905343,0.86415156,64391.0,64390.0,0.002644]
[1728879905850,0.87815156,64391.0,64390.0,0.003644]
[1728879906546,0.90248986,64391.0,64390.0,0.003644]
[1728879907495,0.72610931,64391.0,64390.0,0.003644]
[1728879908001,0.90248986,64391.0,64390.0,0.003644]
[1728879909644,0.72610931,64391.0,64390.0,0.003644]
[1728879910803,0.4648853,64391.0,64390.0,0.002644]
[1728879911033,0.4648853,64391.0,64390.0,0.003644]
[1728879911998,0.4508853,64391.0,64390.0,0.002644]
[1728879912471,0.4648853,64391.0,64390.0,0.003644]
[1728879912701,0.4508853,64391.0,64390.0,0.001644]
[1728879913147,0.4648853,64391.0,64390.0,0.003644]
[1728879913613,0.440547,64391.0,64390.0,0.002644]
[1728879914067,0.439794,64391.0,64390.0,0.002644]
[1728879914764,0.096093,64391.0,64390.0,0.002644]
[1728879915001,0.014893,64391.0,64390.0,0.002644]
[1728879915238,0.170194,64391.0,64390.0,0.002644]
[1728879919961,0.50779856,64391.0,64390.0,0.002644]
[1728879920182,0.77799856,64391.0,64390.0,0.002644]
[1728879921569,0.87799856,64391.0,64390.0,0.002644]
[1728879922027,0.94775074,64391.0,64390.0,0.002644]
[1728879922460,0.86399856,64391.0,64390.0,0.001644]
[1728879922683,0.88099856,64391.0,64390.0,0.003644]
[1728879922896,0.88299856,64391.0,64390.0,0.003644]
[1728879923139,0.91248656,64391.0,64390.0,0.001644]
[1728879923383,0.87999856,64391.0,64390.0,0.002644]
[1728879923604,1.38299856,64391.0,64390.0,0.003644]
[1728879925023,0.340556,64368.0,64367.0,0.23288852]
[1728879925254,0.345556,64368.0,64367.0,0.23288852]
[1728879925711,0.155375,64361.0,64358.0,0.23288852]
[1728879925946,0.33175855,64359.0,64358.0,0.23288852]
[1728879926206,0.15538,64358.0,64356.0,0.000823]
[1728879926460,0.50680401,64358.0,64356.0,0.000823]
[1728879926680,0.58610401,64358.0,64356.0,0.000823]
[1728879926905,0.58410401,64358.0,64356.0,0.000823]
[1728879928608,0.58610401,64358.0,64356.0,0.000823]
[1728879928844,0.61210401,64358.0,64357.0,0.001823]
[1728879929067,0.59810401,64358.0,64357.0,0.001823]
[1728879929295,0.59810401,64358.0,64357.0,0.000823]
[1728879929296,0.76147372,64358.0,64357.0,0.000823]
[1728879929803,0.87547372,64358.0,64357.0,0.001823]
[1728879930245,0.87547372,64358.0,64357.0,0.000823]
[1728879930468,0.72310401,64358.0,64357.0,0.000823]
[1728879931172,0.2859,64355.0,64354.0,0.000823]
[1728879931388,0.95527311,64355.0,64354.0,0.000823]
[1728879932051,0.160414,64344.0,64326.0,0.000821]
[1728879932289,0.260417,64343.0,64326.0,0.000821]
[1728879932564,0.441543,64332.0,64326.0,0.23370952]
[1728879933033,0.439543,64332.0,64326.0,0.23370952]
[1728879933544,0.441543,64332.0,64326.0,0.23370952]
[1728879934265,0.439543,64332.0,64326.0,0.23370952]
[1728879934497,0.941543,64332.0,64326.0,0.23370952]
[1728879934953,0.953543,64332.0,64331.0,0.001822]
[1728879935177,1.21476701,64332.0,64331.0,0.001822]
[1728879935403,1.41313672,64332.0,64331.0,0.001822]
[1728879935634,1.41113672,64332.0,64331.0,0.001822]
[1728879935857,1.41313672,64332.0,64331.0,0.001822]
[1728879936090,1.22676701,64332.0,64331.0,0.001822]
[1728879936344,1.40314756,64332.0,64331.0,0.001822]
[1728879936571,1.42750844,64332.0,64331.0,0.001822]
[1728879936798,0.97202789,64332.0,64331.0,0.001822]
[1728879937264,0.86702789,64332.0,64331.0,0.001822]
[1728879937540,0.87202789,64332.0,64331.0,0.001822]
[1728879938260,0.86702789,64332.0,64331.0,0.0056916]
[1728879938497,0.85502789,64332.0,64331.0,0.00569164]
[1728879938718,0.85302789,64332.0,64331.0,0.00669164]
[1728879938955,0.86702789,64332.0,64331.0,0.00669164]
[1728879939176,0.85302789,64332.0,64331.0,0.00669164]
[1728879939609,0.85502789,64332.0,64331.0,0.00569164]
[1728879940064,0.86602789,64332.0,64331.0,0.00669164]
[1728879941439,0.86602789,64332.0,64331.0,0.0163782]
[1728879941887,0.93992789,64332.0,64331.0,0.00569164]
[1728879942342,0.93592789,64332.0,64331.0,0.00669164]
[1728879942587,0.93592789,64332.0,64325.0,0.001644]
[1728879942588,0.160458,64326.0,64325.0,0.001644]
[1728879942831,0.49806256,64326.0,64325.0,0.001644]
[1728879943061,0.96881609,64326.0,64325.0,0.001644]
[1728879943289,0.79443554,64326.0,64325.0,0.001644]
[1728879943976,0.79443554,64326.0,64325.0,0.002644]
[1728879943977,0.80843554,64326.0,64325.0,0.002644]
[1728879944199,0.71696256,64326.0,64325.0,0.002644]
[1728879944426,0.73233894,64326.0,64325.0,0.002644]
[1728879944891,0.73033894,64326.0,64325.0,0.002644]
[1728879945177,0.71633894,64326.0,64325.0,0.001644]
[1728879945663,0.74433894,64326.0,64325.0,0.002644]
[1728879945897,0.91171411,64326.0,64325.0,0.002644]
[1728879946123,0.89771411,64326.0,64325.0,0.001644]
[1728879946348,0.89971411,64326.0,64325.0,0.001644]
[1728879946794,0.91371411,64326.0,64325.0,0.001644]
[1728879947012,0.92771411,64326.0,64325.0,0.002644]
[1728879947237,0.92571411,64326.0,64325.0,0.002644]
[1728879947461,0.74570194,64326.0,64325.0,0.002644]
[1728879947916,0.73032556,64326.0,64325.0,0.002644]
[1728879949495,0.73032556,64326.0,64325.0,0.02014183]
[1728879949728,0.207821,64326.0,64325.0,0.02014183]
[1728879949959,0.207821,64326.0,64325.0,0.04540667]
[1728879950471,0.207821,64326.0,64325.0,0.06482587]
[1728879950920,0.17275959,64326.0,64325.0,0.06482587]
[1728879951378,0.15875959,64326.0,64325.0,0.06382587]
[1728879951612,0.15875959,64326.0,64325.0,0.06482587]
[1728879951861,0.17275959,64326.0,64325.0,0.06482587]
[1728879952087,0.14457195,64326.0,64325.0,0.06382587]
[1728879952537,0.3329525,64326.0,64325.0,0.06382587]
[1728879952989,0.3329525,64326.0,64325.0,0.08336173]
[1728879953659,0.3085895,64326.0,64325.0,0.08336173]
[1728879954341,0.3085895,64326.0,64325.0,0.09957115]
[1728879954594,0.3085895,64326.0,64325.0,0.10444085]
[1728879955479,0.3085895,64326.0,64325.0,0.08823143]
[1728879956648,0.33294931,64326.0,64325.0,0.08823143]
[1728879956910,0.49417332,64326.0,64325.0,0.06599837]
[1728879957149,0.49417332,64326.0,64325.0,0.10466997]
[1728879957407,0.57647332,64326.0,64325.0,0.08839915]